bitfinex/quotes_SOLUSD_20250406
["timestamp","ask_amount","ask_price","bid_price","bid_amount"]
[1743901087068,7.8724,120.41,120.39,3.08958176]
[1743901088265,7.8724,120.41,120.37,16.75243761]
[1743901088868,7.8724,120.41,120.38,3.08878945]
[1743901089769,7.8724,120.41,120.39,3.08878945]
[1743901090869,7.8724,120.41,120.37,16.75243761]
[1743901091468,7.8724,120.41,120.38,0.03]
[1743901092768,7.8724,120.41,120.39,3.08781251]
[1743901093773,7.8724,120.41,120.38,0.03]
[1743901095867,7.8724,120.41,120.39,3.08787741]
[1743901096751,26.52204886,120.41,120.4,3.08787741]
[1743901098160,18.64964886,120.4,120.38,0.03]
[1743901098370,35.40208647,120.4,120.38,0.03]
[1743901098868,18.64964886,120.4,120.38,0.03]
[1743901099683,8.15672314,120.41,120.38,0.03]
[1743901099859,18.64964886,120.4,120.38,0.03]
[1743901100761,8.15672314,120.41,120.38,0.03]
[1743901101690,8.15672314,120.41,120.39,3.08938041]
[1743901102361,8.15672314,120.41,120.38,0.03]
[1743901102666,7.8724,120.41,120.38,0.03]
[1743901104192,7.8724,120.41,120.39,3.0890012]
[1743901104775,6.2074,120.41,120.39,3.0890012]
[1743901105274,6.2074,120.41,120.39,3.1190012]
[1743901105480,6.2074,120.41,120.4,3.0890012]
[1743901107564,24.85704886,120.41,120.4,3.0890012]
[1743901109786,41.60948647,120.41,120.4,3.0890012]
[1743901110089,41.89380961,120.41,120.4,3.0890012]
[1743901110282,18.64964886,120.4,120.39,0.03]
[1743901110492,23.24416075,120.41,120.39,0.03]
[1743901112290,18.64964886,120.4,120.35,15.87243761]
[1743901112478,18.64964886,120.4,120.36,16.75243761]
[1743901113573,18.64964886,120.4,120.37,3.09057875]
[1743901114290,22.95983761,120.41,120.38,3.09057875]
[1743901114494,24.85704886,120.41,120.38,3.09057875]
[1743901115594,24.85704886,120.41,120.39,3.09057875]
[1743901116268,24.85704886,120.41,120.4,3.09105176]
[1743901119602,24.92004886,120.41,120.4,3.09105176]
[1743901127606,24.92004886,120.41,120.37,42.75243761]
[1743901130392,24.92004886,120.41,120.38,3.09476946]
[1743901131113,24.92004886,120.41,120.39,3.09476946]
[1743901131714,24.92004886,120.41,120.4,3.09476946]
[1743901169852,0.063,120.41,120.4,3.09476946]
[1743901170032,0.063,120.41,120.4,19.84720707]
[1743901180152,0.063,120.41,120.4,3.09476946]
[1743901186162,0.063,120.41,120.4,45.84720707]
[1743901189569,0.063,120.41,120.4,112.99911908]
[1743901192447,0.063,120.41,120.4,45.84720707]
[1743901193054,0.063,120.41,120.4,29.09476946]
[1743901193262,0.063,120.41,120.4,3.09476946]
[1743901194564,0.063,120.41,120.4,19.84720707]
[1743901194962,0.063,120.41,120.4,3.09476946]
[1743901201156,0.063,120.41,120.4,19.84720707]
[1743901203963,0.063,120.41,120.4,19.98936864]
[1743901204161,0.063,120.41,120.4,86.99911908]
[1743901206277,0.063,120.41,120.4,87.28344222]
[1743901206477,0.063,120.44,120.43,26.0]
[1743901206687,0.063,120.44,120.43,45.98936864]
[1743901206975,0.063,120.44,120.43,128.38936864]
[1743901208183,0.063,120.44,120.43,3.09476946]
[1743901210194,0.063,120.44,120.43,19.84720707]
[1743901212792,0.063,120.44,120.43,3.09476946]
[1743901214671,0.063,120.44,120.4,99.15243761]
[1743901214871,0.063,120.44,120.4,16.75243761]
[1743901215595,0.063,120.44,120.41,3.08561596]
[1743901216094,0.063,120.44,120.41,19.83805357]
[1743901216394,0.063,120.44,120.42,3.08561596]
[1743901216975,0.063,120.44,120.42,19.83805357]
[1743901217182,0.063,120.44,120.43,19.83805357]
[1743901219197,0.063,120.44,120.43,3.08561596]
[1743901222600,0.063,120.44,120.43,19.83805357]
[1743901224093,0.063,120.44,120.43,3.08561596]
[1743901227382,37.03098647,120.44,120.43,3.08561596]
[1743901227583,37.03098647,120.44,120.41,0.03]
[1743901228615,37.03098647,120.44,120.42,3.08632784]
[1743901229703,37.03098647,120.44,120.41,0.03]
[1743901231187,37.03098647,120.44,120.42,3.08634596]
[1743901231812,1.6289,120.44,120.42,3.08634596]
[1743901232106,20.27854886,120.44,120.43,3.08634596]
[1743901233911,20.27854886,120.44,120.41,0.03]
[1743901234888,20.27854886,120.44,120.42,3.08535978]
[1743901235517,20.27854886,120.44,120.41,0.03]
[1743901237322,20.27854886,120.44,120.42,3.08539164]
[1743901238518,20.27854886,120.44,120.41,0.03]
[1743901240122,20.27854886,120.44,120.42,3.08507298]
[1743901240810,41.68990961,120.43,120.42,3.08507298]
[1743901241195,41.68990961,120.43,120.41,0.03]
[1743901241400,35.40208647,120.42,120.41,0.03]
[1743901241815,35.68640961,120.42,120.41,0.03]
[1743901250125,61.64147118,120.42,120.41,0.03]
[1743901250307,69.38187118,120.42,120.41,0.03]
[1743901250510,69.38187118,120.42,120.35,0.03]
[1743901250511,6.44002314,120.38,120.35,0.03]
[1743901250731,35.40208647,120.37,120.35,0.03]
[1743901251029,35.40208647,120.37,120.36,3.08193885]
[1743901251425,35.40208647,120.37,120.35,0.03]
[1743901252131,18.64964886,120.37,120.35,0.03]
[1743901252913,7.6774,120.38,120.35,0.03]
[1743901256637,18.64964886,120.37,120.35,0.03]
[1743901257917,35.40208647,120.37,120.35,0.03]
[1743901262238,0.28432314,120.36,120.35,0.03]
[1743901262540,17.03676075,120.36,120.35,0.03]
[1743901262716,18.64964886,120.36,120.35,0.03]
[1743901264028,35.40208647,120.36,120.35,0.03]
[1743901265041,18.64964886,120.36,120.35,0.03]
[1743901265344,35.40208647,120.36,120.35,0.03]
[1743901268613,35.68640961,120.36,120.35,0.03]
[1743901270241,35.82857118,120.36,120.35,0.03]
[1743901270442,42.90857118,120.36,120.35,0.03]
[1743901270938,68.72437118,120.36,120.35,0.03]
[1743901271119,75.33917118,120.36,120.35,0.03]
[1743901271519,76.95017118,120.36,120.35,0.03]
[1743901271920,0.28432314,120.35,120.34,0.063]
[1743901272134,35.82857118,120.35,120.34,0.063]
[1743901272937,39.07613357,120.34,120.33,0.063]
[1743901273238,55.82857118,120.34,120.33,0.063]
[1743901273431,64.05437118,120.34,120.33,0.063]
[1743901273625,0.42648471,120.33,120.32,0.063]
[1743901273840,102.83832162,120.33,120.32,0.063]
[1743901274038,108.65562162,120.33,120.32,0.063]
[1743901275731,35.82857118,120.33,120.32,0.063]
[1743901278854,41.64587118,120.33,120.32,0.063]
[1743901280854,35.82857118,120.33,120.32,0.063]
[1743901287758,41.64587118,120.33,120.32,0.063]
[1743901288962,108.65562162,120.33,120.32,0.063]
[1743901292157,35.82857118,120.33,120.32,0.063]
[1743901292364,42.90857118,120.33,120.32,0.063]
[1743901294442,48.72587118,120.33,120.32,0.063]
[1743901299450,243.40587118,120.33,120.32,0.063]
[1743901302843,243.46887118,120.33,120.32,0.063]
[1743901304163,20.28432314,120.32,120.31,0.03]
[1743901304386,55.82857118,120.32,120.31,0.03]
[1743901305270,61.64637118,120.32,120.31,0.03]
[1743901308274,54.10836157,120.3,120.28,0.03]
[1743901308456,89.79477118,120.3,120.28,0.03]
[1743901309374,95.61347118,120.3,120.28,0.03]
[1743901312156,20.0,120.26,120.25,0.03]
[1743901312364,88.90857118,120.26,120.25,0.03]
[1743901315154,88.76640961,120.26,120.25,0.03]
[1743901315484,88.90857118,120.26,120.25,0.03]
[1743901318858,111.48170879,120.26,120.25,0.03]
[1743901319076,20.28432314,120.24,120.23,0.03]
[1743901319278,55.82857118,120.24,120.23,0.03]
[1743901321354,39.07613357,120.24,120.23,0.03]
[1743901321559,55.82857118,120.24,120.23,0.03]
[1743901322176,18.933972,120.24,120.23,0.03]
[1743901322985,18.64964886,120.24,120.23,0.03]
[1743901326278,0.28432314,120.26,120.23,0.03]
[1743901326478,18.79181043,120.26,120.23,16.78243761]
[1743901328783,18.64964886,120.26,120.23,16.78243761]
[1743901330283,18.71264886,120.26,120.23,16.78243761]
[1743901330890,18.71264886,120.26,120.23,0.03]
[1743901331187,18.71264886,120.26,120.24,3.09103997]
[1743901332297,18.71264886,120.26,120.23,16.78243761]
[1743901333401,0.063,120.26,120.23,16.78243761]
[1743901333689,0.063,120.26,120.24,16.75243761]
[1743901334071,0.063,120.26,120.23,16.78243761]
[1743901334870,0.063,120.26,120.24,3.09230095]
[1743901335592,0.063,120.26,120.23,16.78243761]
[1743901336271,0.063,120.26,120.25,16.75243761]
[1743901336573,0.063,120.26,120.25,19.84503974]
[1743901336775,194.78,120.3,120.25,87.54389018]
[1743901337097,0.063,120.33,120.29,16.75243761]
[1743901337271,0.063,120.33,120.3,16.75243761]
[1743901337782,18.71264886,120.33,120.3,3.09260213]
[1743901338087,18.71264886,120.33,120.3,19.84503974]
[1743901338289,0.063,120.33,120.3,21.42913974]
[1743901342798,0.063,120.33,120.3,18.33653761]
[1743901350302,0.063,120.33,120.3,16.75243761]
[1743901359823,16.75243761,120.32,120.26,26.03]
[1743901360036,16.81543761,120.31,120.26,42.78243761]
[1743901360416,16.81543761,120.31,120.27,42.75243761]
[1743901361435,0.063,120.31,120.28,16.75243761]
[1743901361901,0.063,120.31,120.29,16.75243761]
[1743901363732,0.063,120.31,120.3,16.75243761]
[1743901365230,0.063,120.31,120.29,16.75243761]
[1743901365728,0.063,120.31,120.27,108.4]
[1743901365933,0.063,120.31,120.29,16.75243761]
[1743901368213,15.87843761,120.33,120.29,16.75243761]
[1743901368413,18.28653761,120.34,120.29,16.75243761]
[1743901368837,0.063,120.31,120.29,16.75243761]
[1743901370814,0.063,120.31,120.28,16.75243761]
[1743901371134,0.063,120.31,120.27,125.15243761]
[1743901371524,0.063,120.31,120.28,19.82961393]
[1743901372125,0.063,120.31,120.29,3.07717632]
[1743901374938,0.063,120.31,120.3,3.07717632]
[1743901375940,0.063,120.31,120.29,3.07717632]
[1743901376735,0.063,120.31,120.3,3.07717632]
[1743901377042,0.063,120.31,120.3,19.82961393]
[1743901377236,0.063,120.31,120.3,3.07717632]
[1743901377826,0.063,120.31,120.3,19.82961393]
[1743901378026,0.063,120.31,120.3,3.07717632]
[1743901400244,0.063,120.31,120.3,19.82961393]
[1743901402560,0.063,120.31,120.3,3.07717632]
[1743901403549,0.063,120.31,120.3,19.82961393]
[1743901404376,0.063,120.31,120.3,3.07717632]
[1743901408584,0.063,120.31,120.3,3.10717632]
[1743901410378,0.063,120.31,120.3,19.85961393]
[1743901411883,0.063,120.31,120.3,109.4817755]
[1743901412095,0.063,120.31,120.3,109.76609864]
[1743901412378,0.063,120.33,120.32,26.14216157]
[1743901412581,0.063,120.33,120.32,125.57892232]
[1743901412794,13.01017617,120.4,120.37,16.75243761]
[1743901413082,13.01017617,120.4,120.39,16.75243761]
[1743901414087,13.01017617,120.4,120.39,3.07717632]
[1743901414269,0.063,120.41,120.39,3.07717632]
[1743901415780,0.063,120.41,120.38,42.75243761]
[1743901418194,0.063,120.41,120.38,26.0]
[1743901419191,35.46508647,120.41,120.35,82.4]
[1743901419386,16.75243761,120.39,120.34,23.81243761]
[1743901419605,16.75243761,120.39,120.35,3.07243558]
[1743901420296,16.75243761,120.38,120.33,99.15243761]
[1743901420488,16.75243761,120.38,120.33,106.21243761]
[1743901420873,16.75243761,120.38,120.34,3.07230163]
[1743901421792,16.75243761,120.38,120.33,23.81243761]
[1743901422993,16.75243761,120.38,120.33,7.06]
[1743901423179,16.75243761,120.38,120.33,23.81243761]
[1743901423591,16.75243761,120.38,120.34,3.07170627]
[1743901424292,16.75243761,120.38,120.33,23.81243761]
[1743901425601,16.75243761,120.38,120.34,3.07121018]
[1743901426289,16.75243761,120.38,120.34,19.82364779]
[1743901426702,16.75243761,120.38,120.34,16.75243761]
[1743901431108,16.75243761,120.38,120.33,23.81243761]
[1743901431310,16.75243761,120.37,120.32,16.75243761]
[1743901432212,18.64964886,120.38,120.33,16.75243761]
[1743901432408,35.40208647,120.38,120.33,16.75243761]
[1743901435008,35.46508647,120.38,120.31,89.63216157]
[1743901435211,16.75243761,120.37,120.33,16.75243761]
[1743901439620,16.75243761,120.37,120.31,89.63216157]
[1743901439799,16.75243761,120.37,120.33,16.75243761]
[1743901442417,16.81543761,120.38,120.33,16.75243761]
[1743901444218,16.81543761,120.38,120.34,3.07535464]
[1743901444828,16.81543761,120.38,120.33,16.75243761]
[1743901445116,0.063,120.38,120.34,16.75243761]
[1743901447108,16.81543761,120.38,120.33,16.75243761]
[1743901447311,16.81543761,120.38,120.34,16.75243761]
[1743901449639,16.81543761,120.38,120.35,3.08032786]
[1743901450436,16.81543761,120.38,120.34,16.75243761]
[1743901452033,16.81543761,120.38,120.35,3.08326976]
[1743901452240,0.063,120.38,120.35,3.08326976]
[1743901452739,0.063,120.38,120.34,16.75243761]
[1743901454133,0.063,120.38,120.35,3.08548391]
[1743901454846,0.063,120.38,120.34,16.75243761]
[1743901455754,0.063,120.38,120.33,0.03]
[1743901456041,0.063,120.38,120.34,19.84035645]
[1743901456042,16.81543761,120.38,120.34,19.84035645]
[1743901456239,16.81543761,120.38,120.34,3.08791884]
[1743901457035,16.81543761,120.38,120.35,3.08791884]
[1743901457337,24.35383761,120.37,120.35,3.08791884]
[1743901457742,7.6014,120.37,120.33,16.78243761]
[1743901458342,7.6014,120.37,120.34,3.08875108]
[1743901458843,7.6014,120.37,120.33,16.78243761]
[1743901458844,7.6014,120.37,120.35,3.08875108]
[1743901459639,7.6014,120.37,120.33,16.78243761]
[1743901459943,7.6014,120.37,120.34,16.75243761]
[1743901460745,7.6014,120.37,120.33,16.78243761]
[1743901461143,7.6014,120.37,120.34,3.09060927]
[1743901462349,7.6014,120.37,120.35,3.09060927]
[1743901462838,24.35383761,120.37,120.35,3.09060927]
[1743901463240,24.35383761,120.37,120.36,3.09060927]
[1743901464366,7.6014,120.37,120.36,3.09060927]
[1743901469561,43.00348647,120.37,120.36,3.09060927]
[1743901472374,7.6014,120.37,120.36,3.09060927]
[1743901475066,7.6014,120.37,120.33,0.03]
[1743901475275,0.063,120.38,120.35,16.75243761]
[1743901475645,0.063,120.38,120.36,16.75243761]
[1743901476964,0.063,120.38,120.35,23.81243761]
[1743901477152,0.063,120.38,120.37,16.75243761]
[1743901479269,0.063,120.38,120.37,19.84953942]
[1743901482151,0.063,120.38,120.37,3.09710181]
[1743901483280,6.5932,120.38,120.37,3.09710181]
[1743901483454,23.34563761,120.38,120.37,3.09710181]
[1743901484155,42.27960961,120.38,120.37,3.09710181]
[1743901484477,18.64964886,120.37,120.33,0.03]
[1743901484686,16.75243761,120.36,120.33,0.03]
[1743901485489,16.75243761,120.36,120.34,3.09348538]
[1743901485987,16.75243761,120.36,120.35,3.09348538]
[1743901492688,16.75243761,120.36,120.33,0.03]
[1743901493492,16.75243761,120.36,120.34,3.09378872]
[1743901494391,16.75243761,120.36,120.33,0.03]
[1743901496375,16.75243761,120.34,120.33,0.03]
[1743901496999,16.75243761,120.34,120.33,3.12467091]
[1743901498600,35.40208647,120.34,120.33,3.12467091]
[1743901498780,35.40208647,120.34,120.33,0.03]
[1743901499092,41.88518647,120.34,120.33,0.03]
[1743901501205,1.6216,120.36,120.33,0.03]
[1743901501406,18.37403761,120.36,120.33,0.03]
[1743901501610,16.75243761,120.35,120.33,0.03]
[1743901502711,1.6216,120.36,120.33,0.03]
[1743901502905,0.063,120.36,120.33,16.78243761]
[1743901503096,0.063,120.36,120.35,16.75243761]
[1743901503711,0.063,120.36,120.35,106.35459918]
[1743901504089,0.063,120.36,120.35,109.44323128]
[1743901512007,0.063,120.36,120.35,109.58539285]
[1743901512213,0.063,120.36,120.35,128.37720328]
[1743901513107,0.063,120.37,120.36,18.64964886]
[1743901513314,0.063,120.38,120.37,35.82857118]
[1743901513497,0.063,120.41,120.4,26.0]
[1743901513703,0.063,120.41,120.4,132.21243761]
[1743901514393,0.063,120.41,120.4,135.30106971]
[1743901514923,0.063,120.41,120.4,202.73730486]
[1743901515220,0.063,120.41,120.4,135.72755442]
[1743901515722,0.063,120.41,120.4,139.82799732]
[1743901517418,0.063,120.41,120.4,146.46706354]
[1743901517817,0.063,120.41,120.4,40.67555971]
[1743901517990,0.063,120.41,120.4,57.42799732]
[1743901520910,0.063,120.41,120.4,63.92727039]
[1743901522430,0.063,120.41,120.4,57.42799732]
[1743901523730,0.063,120.41,120.4,146.51735249]
[1743901523931,0.063,120.41,120.4,139.82799732]
[1743901531328,0.063,120.41,120.4,108.4]
[1743901531529,0.063,120.41,120.39,23.81243761]
[1743901532035,0.063,120.41,120.4,16.75243761]
[1743901532211,0.063,120.41,120.4,17.17892232]
[1743901532534,0.063,120.41,120.4,99.57892232]
[1743901532932,0.063,120.41,120.4,188.29891999]
[1743901534312,0.063,120.41,120.4,121.28916955]
[1743901537730,0.063,120.41,120.4,188.29891999]
[1743901539933,0.063,120.41,120.4,121.28916955]
[1743901544051,0.063,120.42,120.41,0.92648471]
[1743901544349,0.063,120.45,120.43,42.75243761]
[1743901544548,0.063,120.45,120.43,49.81243761]
[1743901545327,0.063,120.45,120.43,52.87303598]
[1743901546946,0.063,120.45,120.43,36.12059837]
[1743901547251,1.668,120.44,120.43,36.12059837]
[1743901548364,1.668,120.44,120.43,29.06059837]
[1743901552661,1.668,120.44,120.43,45.81303598]
[1743901554054,1.668,120.44,120.43,3.06059837]
[1743901554358,24.79333761,120.44,120.43,3.06059837]
[1743901557656,8.0409,120.44,120.43,3.06059837]
[1743901558536,24.79333761,120.44,120.43,3.06059837]
[1743901566064,8.0409,120.44,120.43,3.06059837]
[1743901571372,0.063,120.44,120.43,19.81303598]
[1743901575878,0.063,120.44,120.43,29.06059837]
[1743901577770,0.063,120.44,120.43,19.81303598]
[1743901580896,0.063,120.44,120.43,3.06059837]
[1743901581401,0.063,120.44,120.43,19.81303598]
[1743901581592,0.063,120.44,120.43,128.34916955]
[1743901581898,0.063,120.45,120.44,18.64964886]
[1743901582196,0.063,120.45,120.44,35.40208647]
[1743901582401,0.063,120.45,120.44,38.46268484]
[1743901584085,0.063,120.45,120.44,121.78916955]
[1743901585493,0.063,120.46,120.45,0.42648471]
[1743901585694,0.03,120.47,120.46,18.64964886]
[1743901585895,0.03,120.5,120.48,44.64964886]
[1743901586213,0.03,120.5,120.48,49.81243761]
[1743901587017,0.03,120.5,120.48,53.29952069]
[1743901587585,0.03,120.5,120.48,71.94916955]
[1743901590412,0.03,120.5,120.48,53.29952069]
[1743901591201,0.03,120.5,120.48,135.69952069]
[1743901597020,0.03,120.5,120.48,154.34916955]
[1743901598627,0.03,120.5,120.48,154.84916955]
[1743901599018,0.03,120.53,120.49,0.92648471]
[1743901599224,0.03,120.53,120.5,38.88916955]
[1743901599707,0.03,120.53,120.5,20.23952069]
[1743901601122,0.03,120.53,120.5,45.55784142]
[1743901601308,0.03,120.53,120.5,128.45784142]
[1743901603719,0.03,120.53,120.5,127.95784142]
[1743901603900,0.03,120.53,120.5,128.45784142]
[1743901605709,0.03,120.53,120.5,127.95784142]
[1743901605910,0.03,120.53,120.5,128.45784142]
[1743901614032,0.03,120.53,120.5,127.95784142]
[1743901614338,0.03,120.53,120.5,128.45784142]
[1743901615231,0.03,120.53,120.5,109.30819256]
[1743901615534,0.03,120.53,120.5,109.80819256]
[1743901616125,0.03,120.53,120.5,109.87119256]
[1743901620633,0.03,120.53,120.5,109.37119256]
[1743901620940,0.03,120.53,120.5,109.87119256]
[1743901621840,0.03,120.53,120.52,129.33832162]
[1743901622046,0.03,120.55,120.53,19.57613357]
[1743901622343,0.03,120.55,120.54,84.18867276]
[1743901623142,0.03,120.55,120.54,87.24927113]
[1743901625350,0.03,120.55,120.54,87.74927113]
[1743901626126,0.03,120.55,120.54,188.79891999]
[1743901626330,0.063,120.57,120.56,26.14216157]
[1743901626536,0.063,120.57,120.56,132.33459918]
[1743901627241,0.063,120.57,120.56,132.61892232]
[1743901627552,0.063,120.57,120.56,33.04]
[1743901627851,0.063,120.57,120.56,52.85303598]
[1743901629553,0.063,120.57,120.56,52.99519755]
[1743901631456,0.063,120.57,120.56,26.99519755]
[1743901631638,0.063,120.57,120.56,53.27952069]
[1743901633431,0.063,120.57,120.56,135.67952069]
[1743901634652,0.063,120.57,120.56,118.92708308]
[1743901634860,0.063,120.57,120.56,135.67952069]
[1743901641169,0.063,120.57,120.56,3.06059837]
[1743901641669,1.719,120.57,120.56,3.06059837]
[1743901641852,26.74764886,120.57,120.56,3.06059837]
[1743901642053,18.64964886,120.56,120.54,3.06059837]
[1743901642375,35.40208647,120.56,120.55,0.063]
[1743901645376,35.40208647,120.56,120.51,7.18216157]
[1743901645377,41.78108647,120.56,120.51,7.04]
[1743901645572,16.75243761,120.54,120.51,7.04]
[1743901645868,16.75243761,120.54,120.5,16.81543761]
[1743901646049,16.75243761,120.55,120.52,3.08082792]
[1743901646249,16.75243761,120.54,120.52,3.08082792]
[1743901646860,16.75243761,120.54,120.5,16.81543761]
[1743901647876,16.75243761,120.54,120.51,3.08043708]
[1743901648488,16.75243761,120.54,120.5,16.81543761]
[1743901649176,43.43708647,120.53,120.5,0.063]
[1743901652401,26.68464886,120.53,120.5,0.063]
[1743901654285,43.43708647,120.53,120.5,0.063]
[1743901654969,26.68464886,120.53,120.5,0.063]
[1743901657006,26.68464886,120.53,120.5,16.81543761]
[1743901658105,26.68464886,120.53,120.5,0.063]
[1743901663182,26.68464886,120.53,120.5,16.81543761]
[1743901664806,26.68464886,120.53,120.5,0.063]
[1743901665903,26.68464886,120.53,120.5,16.81543761]
[1743901672223,26.68464886,120.53,120.5,0.063]
[1743901673990,26.68464886,120.53,120.5,16.81543761]
[1743901674189,8.035,120.53,120.5,16.81543761]
[1743901676442,8.035,120.53,120.5,0.063]
[1743901680226,8.035,120.53,120.5,16.81543761]
[1743901680522,8.035,120.53,120.51,3.07922759]
[1743901681041,6.379,120.53,120.52,16.75243761]
[1743901681216,0.03,120.55,120.52,23.79243761]
[1743901681422,0.03,120.55,120.54,16.75243761]
[1743901681816,0.03,120.55,120.54,16.89459918]
[1743901682235,0.03,120.55,120.54,19.97382677]
[1743901685201,0.03,120.55,120.54,3.07922759]
[1743901686318,35.43208647,120.55,120.54,3.07922759]
[1743901687018,18.64964886,120.54,120.51,7.04]
[1743901687421,16.75243761,120.54,120.51,7.04]
[1743901687938,16.75243761,120.54,120.52,3.09034]
[1743901688350,16.78243761,120.55,120.52,3.09034]
[1743901689042,16.78243761,120.55,120.53,3.09034]
[1743901690150,16.75243761,120.54,120.51,7.04]
[1743901690847,16.75243761,120.54,120.52,3.0913634]
[1743901691151,16.78243761,120.55,120.52,3.0913634]
[1743901691845,16.78243761,120.55,120.53,3.0913634]
[1743901692651,16.78243761,120.55,120.51,7.04]
[1743901693445,16.78243761,120.55,120.52,3.09156337]
[1743901693633,0.03,120.55,120.52,19.84400098]
[1743901693832,0.03,120.55,120.53,0.14216157]
[1743901694138,0.03,120.55,120.54,3.09156337]
[1743901694443,0.03,120.55,120.54,19.84400098]
[1743901694645,0.03,120.55,120.54,3.09156337]
[1743901707351,0.03,120.55,120.54,3.15456337]
[1743901708148,0.03,120.55,120.54,19.90700098]
[1743901711954,0.03,120.55,120.54,20.04916255]
[1743901719465,0.03,120.55,120.54,20.33348569]
[1743901724959,0.03,120.55,120.54,102.73348569]
[1743901725954,0.03,120.55,120.54,169.74323613]
[1743901727459,0.03,120.55,120.54,102.73348569]
[1743901727667,0.03,120.55,120.54,85.98104808]
[1743901727845,0.03,120.55,120.54,102.73348569]
[1743901735272,0.03,120.55,120.54,85.98104808]
[1743901735483,0.03,120.55,120.54,3.29672494]
[1743901738865,0.03,120.55,120.54,3.15456337]
[1743901739054,18.67964886,120.55,120.54,3.15456337]
[1743901742692,18.67964886,120.55,120.54,45.90700098]
[1743901745291,18.67964886,120.55,120.54,29.15456337]
[1743901747883,18.67964886,120.55,120.54,3.15456337]
[1743901752203,18.67964886,120.55,120.54,45.90700098]
[1743901755190,0.03,120.55,120.54,46.04916255]
[1743901755497,0.03,120.55,120.54,46.33348569]
[1743901758686,0.03,120.55,120.54,46.04916255]
[1743901758877,0.03,120.55,120.54,29.29672494]
[1743901759082,0.03,120.55,120.54,46.04916255]
[1743901770910,0.03,120.55,120.54,3.15456337]
[1743901771094,0.03,120.55,120.54,29.15456337]
[1743901771619,0.03,120.55,120.54,3.15456337]
[1743901771995,25.15064886,120.55,120.54,3.15456337]
[1743901776916,18.67964886,120.55,120.54,3.15456337]
[1743901777121,18.67964886,120.55,120.54,20.04916255]
[1743901781206,0.03,120.55,120.54,20.33348569]
[1743901784633,0.03,120.55,120.54,102.73348569]
[1743901785414,0.03,120.55,120.54,169.74323613]
[1743901785610,0.063,120.57,120.56,26.14216157]
[1743901785929,0.063,120.57,120.56,49.93459918]
[1743901786634,0.063,120.57,120.56,53.02616255]
[1743901788529,0.063,120.57,120.56,53.31048569]
[1743901788706,0.063,120.57,120.56,53.02616255]
[1743901790733,0.063,120.57,120.56,45.98616255]
[1743901792940,0.063,120.57,120.56,29.23372494]
[1743901793237,0.063,120.57,120.56,45.98616255]
[1743901796528,0.063,120.57,120.56,43.17892232]
[1743901797246,0.063,120.57,120.56,46.25975057]
[1743901799336,0.063,120.57,120.56,128.65975057]
[1743901810716,0.03,120.62,120.57,0.92648471]
[1743901810913,0.03,120.64,120.63,26.42648471]
[1743901811230,0.03,120.64,120.63,53.29975057]
[1743901812024,0.03,120.64,120.63,36.54731296]
[1743901812242,0.03,120.64,120.63,53.29975057]
[1743901816532,0.03,120.64,120.63,53.157589]
[1743901816737,0.03,120.64,120.63,52.87326586]
[1743901817113,0.03,120.64,120.63,3.08082825]
[1743901818034,0.03,120.64,120.63,19.83326586]
[1743901819131,0.03,120.64,120.63,3.08082825]
[1743901819331,6.549,120.64,120.63,3.08082825]
[1743901819526,8.2111,120.64,120.63,3.08082825]
[1743901820028,8.2111,120.64,120.62,7.04]
[1743901820738,18.64964886,120.63,120.62,7.04]
[1743901821044,18.64964886,120.63,120.6,26.0]
[1743901821240,18.64964886,120.63,120.61,19.81330775]
[1743901821420,18.64964886,120.63,120.61,3.06087014]
[1743901822230,35.40208647,120.63,120.58,16.75243761]
[1743901822827,35.40208647,120.63,120.59,16.75243761]
[1743901823038,35.40208647,120.63,120.62,0.063]
[1743901823243,18.64964886,120.63,120.62,0.063]
[1743901829442,35.40208647,120.63,120.62,0.063]
[1743901831576,41.20488647,120.63,120.62,0.063]